lending/lending_fUSD_20250409
["ID","MTS","AMOUNT","RATE_DAILY","PERIOD"]
[357591204,1744207866598,-151.0,0.00035042,7]
[357591205,1744207866607,-239.322161,0.00035042,7]
[357591206,1744207866616,-160.342555,0.00035042,7]
[357591207,1744207866626,-160.342555,0.00035042,7]
[357591208,1744207866635,-151.0,0.00035042,7]
[357591209,1744207866645,-151.0,0.00035042,7]
[357591210,1744207866655,-3895.696537,0.00035042,7]
[357591211,1744207866665,-3895.696537,0.00035042,7]
[357591212,1744207866675,-151.0,0.00035042,7]
[357591213,1744207866684,-151.0,0.00035042,7]
[357591214,1744207866693,-170.909216,0.00035042,7]
[357591215,1744207866703,-170.909216,0.00035042,7]
[357591216,1744207866712,-151.0,0.00035042,7]
[357591217,1744207866721,-151.0,0.00035042,7]
[357591218,1744207866731,-1265.334784,0.00035042,7]
[357591219,1744207866741,-1265.334784,0.00035042,7]
[357591220,1744207866750,-304.935488,0.00035042,7]
[357591221,1744207866760,-304.935488,0.00035042,7]
[357591222,1744207866769,-151.0,0.00035042,7]
[357591223,1744207866779,-432.205425,0.00035042,7]
[357591224,1744207866792,-432.205425,0.00035042,7]
[357591225,1744207866801,-151.0,0.00035059,7]
[357591226,1744207866811,-193.220156,0.00035059,7]
[357591227,1744207866820,-411.93827,0.00035059,7]
[357591228,1744207866830,-275.108127,0.00035059,7]
[357591229,1744207866839,-151.0,0.00035059,7]
[357591230,1744207866849,-8329.207123,0.00035059,7]
[357591231,1744207866859,-8329.207123,0.00035059,7]
[357591232,1744207866869,-299.186234,0.00035059,7]
[357591233,1744207866879,-299.186234,0.00035059,7]
[357591234,1744207866889,-408.95187,0.00035059,7]
[357591235,1744207866898,-408.95187,0.00035059,7]
[357591236,1744207866908,-151.0,0.00035059,7]
[357591237,1744207866917,-150.0,0.00035061,2]
[357591238,1744207866927,-150.0,0.00035062,2]
[357591239,1744207866936,-150.0,0.00035063,2]
[357591240,1744207866946,-150.0,0.00035063,2]
[357591241,1744207866956,-1000.0,0.00035064,2]
[357591242,1744207866967,-151.0,0.00035068,7]
[357591243,1744207866976,-151.0,0.00035068,7]
[357591244,1744207866986,-384.79,0.00035068,2]
[357591245,1744207866996,-150.0,0.00035076,2]
[357591246,1744207867006,-151.0,0.00035086,7]
[357591247,1744207867016,-151.0,0.00035086,7]
[357591248,1744207867025,-154.113989,0.00035086,7]
[357591249,1744207867035,-151.0,0.00035086,7]
[357591250,1744207867048,-151.0,0.00035086,7]
[357591251,1744207867058,-151.0,0.00035086,7]
[357591252,1744207867068,-151.0,0.00035086,7]
[357591253,1744207867077,-151.0,0.00035086,7]
[357591254,1744207867087,-337.294523,0.00035086,7]
[357591255,1744207867096,-337.294523,0.00035086,7]
[357591256,1744207867105,-215.329886,0.00035086,7]
[357591257,1744207867114,-215.329886,0.00035086,7]
[357591258,1744207867123,-151.0,0.00035086,7]
[357591259,1744207867132,-1291.120705,0.00035086,7]
[357591260,1744207867142,-1291.120705,0.00035086,7]
[357591261,1744207867151,-151.0,0.00035086,7]
[357591262,1744207867162,-291.474438,0.00035086,7]
[357591263,1744207867171,-291.474438,0.00035086,7]
[357591264,1744207867180,-245.638279,0.00035086,7]
[357591265,1744207867190,-245.638279,0.00035086,7]
[357591266,1744207867199,-151.0,0.00035086,7]
[357591267,1744207867208,-1000.0,0.00035089,2]
[357591268,1744207867218,-1000.0,0.0003509,2]
[357591269,1744207867227,-150.0,0.00035096,2]
[357591270,1744207867236,-150.0,0.00035097,2]
[357591271,1744207867246,-2000.0,0.000351,22]
[357591272,1744207867255,-300.0,0.00035109,10]
[357591273,1744207867264,-150.0,0.00035109,2]
[357591274,1744207867273,-150.0,0.00035109,2]
[357591275,1744207867282,-150.0,0.00035109,2]
[357591276,1744207867294,-150.0,0.00035109,2]
[357591277,1744207867306,-150.0,0.00035109,2]
[357591278,1744207867316,-300.0,0.00035109,10]
[357591279,1744207867325,-150.0,0.00035109,2]
[357591280,1744207867334,-250985.73356086,0.0003511,30]
[357591281,1744207867344,-151.0,0.0003511,7]
[357591282,1744207867353,-151.0,0.0003511,7]
[357591283,1744207867362,-151.0,0.0003511,7]
[357591284,1744207867372,-151.0,0.0003511,7]
[357591285,1744207867382,-151.0,0.0003511,7]
[357591286,1744207867391,-151.0,0.0003511,7]
[357591287,1744207867401,-151.0,0.0003511,7]
[357591288,1744207867410,-151.0,0.0003511,7]
[357591289,1744207867419,-151.0,0.0003511,7]
[357591290,1744207867429,-151.0,0.0003511,7]
[357591291,1744207867438,-200.04429,0.0003511,7]
[357591292,1744207867448,-151.0,0.0003511,7]
[357591293,1744207867458,-151.0,0.0003511,7]
[357591294,1744207867467,-151.0,0.0003511,7]
[357591295,1744207867477,-151.0,0.0003511,7]
[357591296,1744207867486,-151.0,0.0003511,7]
[357591297,1744207867496,-388.185167,0.0003511,7]
[357591298,1744207867505,-388.185167,0.0003511,7]
[357591299,1744207867514,-151.0,0.0003511,7]
[357591300,1744207867523,-151.0,0.0003511,7]
[357591301,1744207867533,-151.0,0.0003511,7]
[357591302,1744207867544,-411.93827,0.0003511,7]
[357591303,1744207867553,-151.0,0.0003511,7]
[357591304,1744207867563,-151.0,0.0003511,7]
[357591305,1744207867572,-292.351399,0.0003511,7]
[357591306,1744207867581,-557.922233,0.0003511,7]
[357591307,1744207867590,-292.351399,0.0003511,7]
[357591308,1744207867600,-557.922233,0.0003511,7]
[357591309,1744207867609,-151.0,0.0003511,7]
[357591310,1744207867618,-151.0,0.0003511,7]
[357591311,1744207867628,-177.38899,0.0003511,7]
[357591312,1744207867636,-155.421234,0.0003511,7]
[357591313,1744207867646,-158.234544,0.0003511,7]
[357591314,1744207867656,-158.234544,0.0003511,7]
[357591315,1744207867666,-151.0,0.0003511,7]
[357591316,1744207867676,-172.6684,0.0003511,7]
[357591317,1744207867685,-151.0,0.0003511,7]
[357591318,1744207867695,-172.6684,0.0003511,7]
[357591319,1744207867704,-151.0,0.0003511,7]
[357591320,1744207867713,-151.0,0.0003511,7]
[357591321,1744207867723,-2046.535637,0.0003511,22]
[357591322,1744207867732,-275.108127,0.0003511,7]
[357591323,1744207867741,-151.0,0.0003511,7]
[357591324,1744207867751,-2009.154449,0.0003511,7]
[357591325,1744207867760,-2009.154449,0.0003511,7]
[357591326,1744207867769,-403.192002,0.0003511,7]
[357591327,1744207867778,-403.192002,0.0003511,7]
[357591328,1744207867789,-224.956502,0.0003511,7]
[357591329,1744207867798,-224.956502,0.0003511,7]
[357591330,1744207867807,-205.576565,0.0003511,7]
[357591331,1744207867817,-205.576565,0.0003511,7]
[357591332,1744207867826,-151.0,0.0003511,7]
[357591333,1744207867836,-593.414501,0.0003511,7]
[357591334,1744207867844,-593.414501,0.0003511,7]
[357591335,1744207867854,-239.322161,0.0003511,7]
[357591336,1744207867863,-160.342555,0.0003511,7]
[357591337,1744207867873,-160.342555,0.0003511,7]
[357591338,1744207867882,-151.0,0.0003511,7]
[357591339,1744207867892,-151.0,0.0003511,7]
[357591340,1744207867901,-151.0,0.0003511,7]
[357591341,1744207867911,-3895.696537,0.0003511,7]
[357591342,1744207867921,-3895.696537,0.0003511,7]
[357591343,1744207867930,-151.0,0.0003511,7]
[357591344,1744207867939,-151.0,0.0003511,7]
[357591345,1744207867949,-170.909216,0.0003511,7]
[357591346,1744207867957,-170.909216,0.0003511,7]
[357591347,1744207867966,-151.0,0.0003511,7]
[357591348,1744207867975,-151.0,0.0003511,7]
[357591349,1744207867985,-151.0,0.0003511,7]
[357591350,1744207867995,-337.294523,0.0003511,7]
[357591351,1744207868004,-337.294523,0.0003511,7]
[357591352,1744207868013,-215.329886,0.0003511,7]
[357591353,1744207868021,-215.329886,0.0003511,7]
[357591354,1744207868030,-151.0,0.0003511,7]
[357591355,1744207868041,-151.0,0.0003511,7]
[357591356,1744207868050,-1265.334784,0.0003511,7]
[357591357,1744207868059,-1265.334784,0.0003511,7]
[357591358,1744207868068,-151.0,0.0003511,7]
[357591359,1744207868077,-304.935488,0.0003511,7]
[357591360,1744207868086,-304.935488,0.0003511,7]
[357591361,1744207868096,-1291.120705,0.0003511,7]
[357591362,1744207868106,-8329.207123,0.0003511,7]
[357591363,1744207868115,-1291.120705,0.0003511,7]
[357591364,1744207868124,-151.0,0.0003511,7]
[357591365,1744207868133,-8329.207123,0.0003511,7]
[357591366,1744207868142,-151.0,0.0003511,7]
[357591367,1744207868152,-291.474438,0.0003511,7]
[357591368,1744207868161,-291.474438,0.0003511,7]
[357591369,1744207868170,-299.186234,0.0003511,7]
[357591370,1744207868180,-299.186234,0.0003511,7]
[357591371,1744207868189,-432.205425,0.0003511,7]
[357591372,1744207868198,-408.95187,0.0003511,7]
[357591373,1744207868207,-432.205425,0.0003511,7]
[357591374,1744207868217,-408.95187,0.0003511,7]
[357591375,1744207868226,-245.638279,0.0003511,7]
[357591376,1744207868236,-245.638279,0.0003511,7]
[357591377,1744207868245,-151.0,0.0003511,7]
[357591378,1744207868254,-150.0,0.00035278,2]
[357591379,1744207868264,-574.0,0.00035279,2]
[357591380,1744207868273,-2044.0,0.00035279,2]
[357591381,1744207868283,-1286.0,0.00035279,2]
[357591382,1744207868295,-1326.0,0.00035279,2]
[357591383,1744207868308,-1278.0,0.00035279,2]
[357591384,1744207868317,-1436.0,0.00035279,2]
[357591385,1744207868326,-791.0,0.00035279,2]
[357591386,1744207868335,-907.0,0.00035279,2]
[357591387,1744207868345,-544.0,0.00035279,2]
[357591388,1744207868354,-4143.0,0.00035279,2]
[357591389,1744207868363,-205.576565,0.00035279,7]
[357591390,1744207868373,-205.576572,0.00035279,7]
[357591391,1744207868382,-151.0,0.00035279,7]
[357591392,1744207868392,-593.414501,0.00035279,7]
[357591393,1744207868401,-593.414498,0.00035279,7]
[357591394,1744207868410,-253.735767,0.00035279,7]
[357591395,1744207868419,-151.0,0.00035279,7]
[357591396,1744207868429,-151.0,0.00035279,7]
[357591397,1744207868438,-151.0,0.00035279,7]
[357591398,1744207868447,-170.909216,0.00035279,7]
[357591399,1744207868456,-170.909216,0.00035279,7]
[357591400,1744207868465,-171.452403,0.00035279,7]
[357591401,1744207868474,-151.0,0.00035279,7]
[357591402,1744207868483,-337.294523,0.00035279,7]
[357591403,1744207868493,-337.294523,0.00035279,7]
[357591404,1744207868502,-215.329886,0.00035279,7]
[357591405,1744207868511,-215.329886,0.00035279,7]
[357591406,1744207868520,-151.0,0.00035279,7]
[357591407,1744207868529,-151.0,0.00035279,7]
[357591408,1744207868540,-1265.334784,0.00035279,7]
[357591409,1744207868548,-1265.334784,0.00035279,7]
[357591410,1744207868557,-151.0,0.00035279,7]
[357591411,1744207868566,-304.935488,0.00035279,7]
[357591412,1744207868575,-304.935488,0.00035279,7]
[357591413,1744207868584,-1291.120705,0.00035279,7]
[357591414,1744207868593,-8329.207123,0.00035279,7]
[357591415,1744207868602,-1291.120705,0.00035279,7]
[357591416,1744207868611,-8329.207129,0.00035279,7]
[357591417,1744207868621,-151.0,0.00035279,7]
[357591418,1744207868629,-291.474438,0.00035279,7]
[357591419,1744207868639,-291.474438,0.00035279,7]
[357591420,1744207868648,-299.186234,0.00035279,7]
[357591421,1744207868658,-299.186244,0.00035279,7]
[357591422,1744207868667,-432.205425,0.00035279,7]
[357591423,1744207868676,-408.95187,0.00035279,7]
[357591424,1744207868687,-432.205425,0.00035279,7]
[357591425,1744207868696,-408.95188,0.00035279,7]
[357591426,1744207868705,-245.638279,0.00035279,7]
[357591427,1744207868715,-245.638279,0.00035279,7]
[357591428,1744207868724,-151.0,0.00035279,7]
[357591429,1744207868733,-371.0,0.000355,2]
[357591430,1744207868742,-756.0,0.000355,2]
[357591431,1744207868752,-380.97164123,0.00035599,10]
[357591432,1744207868761,-150.0,0.00035599,2]
[357591433,1744207868771,-150.0,0.00035599,2]
[357591434,1744207868779,-150.0,0.00035599,2]
[357591435,1744207868898,-150.0,0.00035599,2]
[357591436,1744207868912,-150.0,0.00035599,2]
[357591437,1744207868922,-150.0,0.00035599,2]
[357591438,1744207868932,-53416.57219771,0.000356,7]
[357591439,1744207868941,-151.0,0.000356,7]
[357591440,1744207868951,-151.0,0.000356,7]
[357591441,1744207868961,-151.0,0.000356,7]
[357591442,1744207868970,-411.93827,0.000356,7]
[357591443,1744207868980,-151.0,0.000356,7]
[357591444,1744207868990,-151.0,0.000356,7]
[357591445,1744207869000,-292.351399,0.000356,7]
[357591446,1744207869010,-557.922233,0.000356,7]
[357591447,1744207869020,-292.351399,0.000356,7]
[357591448,1744207869030,-557.922233,0.000356,7]
[357591449,1744207869046,-151.0,0.000356,7]
[357591450,1744207869057,-151.0,0.000356,7]
[357591451,1744207869067,-158.234544,0.000356,7]
[357591452,1744207869077,-158.234544,0.000356,7]
[357591453,1744207869088,-195.561287,0.000356,7]
[357591454,1744207869097,-172.6684,0.000356,7]
[357591455,1744207869106,-151.0,0.000356,7]
[357591456,1744207869116,-172.6684,0.000356,7]
[357591457,1744207869125,-151.0,0.000356,7]
[357591458,1744207869134,-151.0,0.000356,7]
[357591459,1744207869143,-275.108127,0.000356,7]
[357591460,1744207869153,-151.0,0.000356,7]
[357591461,1744207869162,-2009.154449,0.000356,7]
[357591462,1744207869171,-2009.154449,0.000356,7]
[357591463,1744207869181,-403.192002,0.000356,7]
[357591464,1744207869190,-403.192002,0.000356,7]
[357591465,1744207869199,-224.956502,0.000356,7]
[357591466,1744207869208,-224.956502,0.000356,7]
[357591467,1744207869217,-159.88,0.000356,2]
[357591468,1744207869226,-239.322161,0.000356,7]
[357591469,1744207869235,-239.322165,0.000356,7]
[357591470,1744207869245,-160.342555,0.000356,7]
[357591471,1744207869254,-160.342562,0.000356,7]
[357591472,1744207869263,-3895.696537,0.000356,7]
[357591473,1744207869272,-3895.696546,0.000356,7]
[357591474,1744207869282,-151.0,0.000356,7]
[357591475,1744207869298,-151.0,0.000356,7]
[357591476,1744207869308,-1265.334784,0.000356,7]
[357591477,1744207869317,-1265.334786,0.000356,7]
[357591478,1744207869326,-304.935488,0.000356,7]
[357591479,1744207869336,-304.935479,0.000356,7]
[357591480,1744207869346,-178.153793,0.000356,7]
[357591481,1744207869355,-432.205425,0.000356,7]
[357591482,1744207869365,-432.205429,0.000356,7]
[357591483,1744207869375,-151.0,0.00035616,7]
[357591484,1744207869384,-151.0,0.00035616,7]
[357591485,1744207869394,-160.433473,0.00035616,7]
[357591486,1744207869403,-151.0,0.00035616,7]
[357591487,1744207869412,-151.0,0.00035616,7]
[357591488,1744207869421,-151.0,0.00035616,7]
[357591489,1744207869431,-151.0,0.00035616,7]
[357591490,1744207869440,-2000.0,0.00035616,120]
[357591491,1744207869449,-1995.992,0.00035616,120]
[357591492,1744207869459,-151.0,0.00035616,7]
[357591493,1744207869469,-170.909216,0.00035616,7]
[357591494,1744207869479,-170.909216,0.00035616,7]
[357591495,1744207869489,-200.0,0.00035616,60]
[357591496,1744207869498,-952.54,0.00035644,30]
[357591497,1744207869508,-150.0,0.00035758,2]
[357591498,1744207869517,-1384.22,0.00035893,2]
[357591499,1744207869528,-150.0,0.00035999,2]
[357591500,1744207869541,-150.0,0.00035999,2]
[357591501,1744207869551,-150.0,0.00035999,2]
[357591502,1744207869564,-150.0,0.00035999,2]
[357591503,1744207869574,-150.0,0.00035999,2]
[357591504,1744207869584,-150.0,0.00035999,2]
[357591505,1744207869594,-8927.23401554,0.00036,2]
[357591506,1744207870094,-9959.73971713,0.00036,2]
[357591507,1744207870600,-500.0,0.00027397,2]
[357591508,1744207870611,-403.94618656,0.00027397,2]
[357591509,1744207870621,-2635.83526797,0.00036,2]
[357591524,1744208143573,500.0,0.00032,120]
[357591526,1744208228037,577.880486,7.945e-05,2]
[357591541,1744208685568,174.41,0.00030956,120]
[357591542,1744208716225,150.0,0.000305,60]
[357591543,1744208734151,-1318.37926269,0.0002,2]
[357591545,1744208759101,-1837.29350602,0.0002,2]
[357591546,1744208766553,150.0,0.00032,120]
[357591547,1744208781725,1233.97981752,0.000209,30]
[357591548,1744208807101,-150.98718319,0.00019999,2]
[357591549,1744208829102,-801.43210964,0.00019999,2]
[357591550,1744208842152,-48.56789036,0.00019999,2]
[357591551,1744208842175,-13.46411223,0.00019999,2]
[357591552,1744208842200,-6082.60858206,0.0002,2]
[357591554,1744208872147,10171.32409766,0.0003,120]
[357591556,1744208926937,443.01670271,0.00028,60]
[357591564,1744208958088,-170.8068362,0.0002,2]
[357591565,1744208958535,-115043.3466,0.0002,2]
[357591566,1744208964096,11177.04362353,0.00032,120]
[357591570,1744208995139,150.0,0.0003,30]
[357591598,1744209032157,-250.0,0.00019,2]
[357591599,1744209032168,-300.0,0.00019999,2]
[357591600,1744209032177,-659.1542531,0.0002,2]
[357591601,1744209032270,-1334.0,0.0002,2]
[357591602,1744209032281,-762.17542217,0.0002,2]
[357591603,1744209032293,-397.01,0.0002,2]
[357591607,1744209032331,-1728.35775524,0.0002,2]
[357591609,1744209032342,-527.22235995,0.0002,2]
[357591611,1744209032353,-650.14847181,0.0002,2]
[357591614,1744209032367,-469.9405751,0.0002,2]
[357591616,1744209032378,-1056.39,0.0002,2]
[357591619,1744209032401,-891.4657582,0.0002,2]
[357591625,1744209037999,-204.14372305,0.0002,2]
[357591626,1744209038106,-125557.62330782,0.0002,2]
[357591627,1744209038115,-33876.12520288,0.0002,4]
[357591628,1744209038124,-300.0,0.00021,2]
[357591629,1744209038135,-420.0,0.00021777,2]
[357591630,1744209038144,-350.0,0.00023,2]
[357591631,1744209038154,-312.0,0.00023712,2]
[357591632,1744209038163,-256.4571604,0.000239,2]
[357591633,1744209038172,-5000.0,0.00024,5]
[357591634,1744209038182,-1538.1654,0.000247,2]
[357591636,1744209038191,-6550.06793898,0.000247,2]
[357591645,1744209040126,-475.93206102,0.000247,2]
[357591646,1744209040135,-151.0,0.000248,7]
[357591647,1744209040145,-151.0,0.000248,7]
[357591648,1744209040155,-151.0,0.0002489,7]
[357591649,1744209040164,-158.774295,0.0002489,7]
[357591650,1744209040174,-151.0,0.000249,7]
[357591651,1744209040183,-174.911139,0.000249,7]
[357591652,1744209040192,-86.38250498,0.00025,7]
[357591659,1744209042666,-775.84,0.00025,7]
[357591661,1744209042898,-420.29988517,0.00025,7]
[357591666,1744209043728,-16.77628446,0.00025,7]
[357591689,1744209045672,-582.70132492,0.00025,7]
[357591691,1744209045684,-400.0,0.00025,2]
[357591693,1744209045694,-9999.99,0.00026452,2]
[357591695,1744209045703,-150.99,0.00026452,2]
[357591697,1744209045712,-277.62,0.00026656,2]
[357591698,1744209045723,-4650.85,0.00026666,2]
[357591700,1744209045733,-1142.55,0.00026666,2]
[357591702,1744209045743,-11439.08627358,0.00026754,3]
[357591705,1744209045757,-2025.12887412,0.00026754,3]
[357591707,1744209045768,-277.62,0.00026754,2]
[357591709,1744209045779,-8247.30475953,0.00026764,2]
[357591716,1744209045964,-1547.62,0.00026764,2]
[357591774,1744209771883,-657.75592729,0.000149,2]
[357591790,1744210164108,-4464.62716,0.00026764,2]
[357591799,1744210232076,-6830.89491319,0.00026764,2]
[357591800,1744210232087,-241.14,0.00026849,2]
[357591801,1744210232097,-241.29,0.00026849,2]
[357591802,1744210232107,-466.79541916,0.00027,14]
[357591803,1744210232122,-1405.79374103,0.00027,14]
[357591804,1744210232134,-450.0,0.00027,2]
[357591805,1744210232146,-250.0,0.0002717,2]
[357591806,1744210232156,-250.0,0.0002728,2]
[357591807,1744210232166,-356.31992025,0.000274,2]
[357591808,1744210232175,-162.49,0.00028,2]
[357591809,1744210232185,-150.0,0.00028986,2]
[357591810,1744210232195,-500.0,0.00029,2]
[357591811,1744210232205,-686.27221167,0.00029274,2]
[357591812,1744210232214,-471.12412706,0.00029368,2]
[357591813,1744210232227,-1046.71587294,0.00029368,2]
[357591814,1744210232237,-495.24,0.00029478,2]
[357591815,1744210232247,-5688.36110923,0.00029899,2]
[357591847,1744210238025,-788.78800001,0.000274,2]
[357591848,1744210238265,-343.21199999,0.000274,2]
[357591849,1744210238275,-14488.90655164,0.00029899,2]
[357591850,1744210238284,-254.32390326,0.0003,14]
[357591910,1744210245138,-982.84933366,0.0003,14]
[357591926,1744210245994,-762.82676308,0.0003,14]
[357591927,1744210246004,-2021.28704691,0.00030008,2]
[357591928,1744210246027,-2985.32771492,0.00030008,2]
[357591929,1744210246036,-200.0,0.00030341,2]
[357591930,1744210246046,-344.56,0.00030388,2]
[357591931,1744210246059,-316.02,0.00030489,2]
[357591932,1744210246069,-1018.92316788,0.00030513,2]
[357591953,1744210796842,174.41,0.000311,120]
[357591955,1744210934433,500.0,0.000305,60]
[357591968,1744211225240,-237.31151909,0.00019,2]
[357591974,1744211371748,-12.68848091,0.00019,2]
[357591975,1744211371770,-300.0,0.00021,2]
[357591976,1744211371790,-154.0,0.00022,2]
[357591977,1744211371812,-250.0,0.00022363,2]
[357591978,1744211371833,-350.0,0.00023,2]
[357591979,1744211371853,-154.0,0.00023014,2]
[357591980,1744211371874,-400.0,0.00025,2]
[357591981,1744211371894,-297.0,0.000263,5]
[357591982,1744211371914,-274.2,0.00026849,2]
[357591983,1744211371935,-450.0,0.00027,2]
[357591984,1744211371956,-154.0,0.00028997,2]
[357591985,1744211371976,-500.0,0.00029,2]
[357591986,1744211371998,-1450.64,0.00029242,2]
[357591987,1744211372018,-329.53766238,0.00030513,2]
[357591988,1744211372039,-403.0,0.00030513,2]
[357591989,1744211372061,-365.0,0.00030513,2]
[357591990,1744211372082,-21113.0319933,0.0003052,2]
[357591991,1744211372102,-1744.2468367,0.0003052,2]
[357591992,1744211372123,-3993.7984276,0.00030541,2]
[357591993,1744211372144,-204.2148718,0.00030562,2]
[357591994,1744211372166,-1000.0,0.00030659,2]
[357591995,1744211372186,-981.07,0.00030679,2]
[357591996,1744211372207,-9942.82887299,0.0003072,2]
[357591997,1744211372228,-25734.08,0.00030722,2]
[357591998,1744211372248,-1852.42,0.00030747,2]
[357591999,1744211372269,-200.0,0.00030748,7]
[357592000,1744211372290,-150.0,0.00030748,2]
[357592001,1744211372311,-170.25,0.0003079,2]
[357592002,1744211372331,-823.08,0.00030796,2]
[357592003,1744211372351,-484.4414024,0.00030824,2]
[357592004,1744211372373,-170.25,0.00030829,2]
[357592005,1744211372395,-170.25,0.00030867,2]
[357592006,1744211372415,-170.25,0.00030906,2]
[357592007,1744211372440,-311.0,0.0003093,2]
[357592008,1744211372467,-170.25,0.00030944,2]
[357592009,1744211372489,-250.0,0.00030999,2]
[357592010,1744211372511,-550.0,0.00031,2]
[357592011,1744211372533,-181.41,0.00031009,2]
[357592012,1744211372554,-500.0,0.00031027,2]
[357592013,1744211372576,-500.0,0.00031027,2]
[357592014,1744211372598,-500.0,0.00031027,2]
[357592015,1744211372618,-500.0,0.00031027,2]
[357592016,1744211372638,-500.0,0.00031027,2]
[357592017,1744211372659,-500.0,0.00031027,2]
[357592018,1744211372680,-500.0,0.00031027,2]
[357592019,1744211372701,-500.0,0.00031027,2]
[357592020,1744211372722,-500.0,0.00031027,2]
[357592021,1744211372743,-500.0,0.00031027,2]
[357592022,1744211372763,-283.97928252,0.00031027,2]
[357592023,1744211372784,-500.0,0.00031027,2]
[357592024,1744211372805,-500.0,0.00031027,2]
[357592025,1744211372829,-23900.0,0.00031028,2]
[357592026,1744211372850,-500.0,0.00031057,2]
[357592027,1744211372872,-160.27,0.00031061,2]
[357592028,1744211372893,-846.95500164,0.00031101,30]
[357592029,1744211372915,-184.85,0.00031249,2]
[357592030,1744211372937,-152.72,0.00031251,2]
[357592031,1744211372959,-6802.52636776,0.00031288,2]
[357592032,1744211385629,200.0,0.000305,60]
[357592033,1744211417906,150.0,0.000312,120]
[357592040,1744211432677,-437.47363224,0.00031288,2]
[357592042,1744211432687,-46083.72626592,0.00031484,2]
[357592044,1744211432699,-6573.20314137,0.00031484,2]
[357592051,1744211438347,-500.0,0.00031483,2]
[357592052,1744211438356,-198.21992028,0.00031483,2]
[357592053,1744211438367,-2499.66819585,0.00031484,2]
[357592126,1744211441171,-398.09970515,0.00031484,2]
[357592127,1744211441186,-12657.86084069,0.00031484,2]
[357592166,1744211444022,-105.33784644,0.00031484,2]
[357592167,1744211446195,-1980.0,0.00031484,2]
[357592172,1744211448187,-1537.41,0.00031484,2]
[357592174,1744211448626,-8381.10665515,0.00031484,2]
[357592175,1744211496928,150.0,0.00032,120]
[357592177,1744211653841,150.0,0.000314,120]
[357592198,1744211887558,798.2155,0.00032,120]
[357592219,1744212451120,-1808.86492726,0.000199,2]
[357592220,1744212451142,-414.72757523,0.000199,2]
[357592223,1744212505794,175.08,0.00029465,91]
[357592224,1744212546110,-27751.07518488,0.00015,2]
[357592225,1744212546131,-1394.13735203,0.000199,2]
[357592226,1744212546153,-500.0,0.00019999,2]
[357592227,1744212546176,-500.0,0.00019999,2]
[357592228,1744212546198,-500.0,0.00019999,2]
[357592229,1744212546221,-500.0,0.00019999,2]
[357592230,1744212546244,-500.0,0.00019999,2]
[357592231,1744212546265,-500.0,0.00019999,2]
[357592232,1744212546288,-500.0,0.00019999,2]
[357592233,1744212546310,-500.0,0.00019999,2]
[357592234,1744212546332,-500.0,0.00019999,2]
[357592235,1744212546354,-500.0,0.00019999,2]
[357592236,1744212546377,-500.0,0.00019999,2]
[357592237,1744212546400,-402.24655919,0.00019999,2]
[357592238,1744212546424,-24024.8878039,0.0002,2]
[357592239,1744212548114,-67469.06133878,0.0002,2]
[357592240,1744212552385,-214.77118962,0.0002,2]